fUSD/lending_fUSD_20240618
["ID","MTS","AMOUNT","RATE_DAILY","PERIOD"]
[329830113,1718723439694,-709.57669779,0.00010909,2]
[329830114,1718723439704,-1252.78326197,0.00010909,2]
[329830115,1718723439713,-277.74016818,0.00010909,2]
[329830116,1718723439723,-285.21638539,0.00010909,2]
[329830117,1718723439734,-248.1650208,0.00010909,2]
[329830118,1718723439744,-157.08940379,0.00010909,2]
[329830119,1718723439756,-161.39721907,0.00010909,2]
[329830120,1718723439769,-338.68648196,0.00010909,2]
[329830121,1718723439780,-155.0,0.00010909,2]
[329830122,1718723439790,-155.46731699,0.00010909,2]
[329830123,1718723439799,-208.21284041,0.00010909,2]
[329830124,1718723439808,-459.71483307,0.00010909,2]
[329830125,1718723439817,-201.47569243,0.00010909,2]
[329830126,1718723439832,-2338.37648856,0.00010909,2]
[329830127,1718723439841,-349.95238219,0.00010909,2]
[329830128,1718723439852,-1713.82095435,0.00010909,2]
[329830129,1718723439863,-282.09176999,0.00010909,2]
[329830130,1718723439873,-265.82029383,0.00010909,2]
[329830131,1718723439884,-166.65902904,0.00010909,2]
[329830132,1718723439895,-1219.0116262,0.00010909,2]
[329830133,1718723439904,-4446.54749549,0.00010909,2]
[329830134,1718723439917,-156.12580805,0.00010909,2]
[329830135,1718723439928,-155.0,0.00010909,2]
[329830136,1718723439938,-25118.64337004,0.00010909,2]
[329830137,1718723439948,-386.62849784,0.00010909,2]
[329830138,1718723439958,-163.04593255,0.0001091,2]
[329830139,1718723439969,-155.0,0.0001091,2]
[329830140,1718723439979,-163.49476447,0.0001091,2]
[329830141,1718723439989,-525.60111443,0.0001091,2]
[329830142,1718723440000,-156.84507586,0.0001091,2]
[329830143,1718723440017,-1278.05478064,0.0001091,2]
[329830144,1718723440027,-1582.76462391,0.0001091,2]
[329830145,1718723440036,-3469.05688678,0.00010911,2]
[329830146,1718723440049,-9872.58570166,0.00010911,2]
[329830147,1718723440061,-56190.7168866,0.00010911,2]
[329830148,1718723440073,-34060.0,0.00010911,2]
[329830149,1718723440085,-191065.23837902,0.00010911,2]
[329830150,1718723440095,-155.30053289,0.00010911,2]
[329830151,1718723440105,-300.0,0.00010911,2]
[329830152,1718723440115,-5902.66961033,0.00010911,2]
[329830153,1718723440124,-433.59,0.00010959,2]
[329830154,1718723440134,-1000.0,0.00011042,2]
[329830155,1718723440143,-210.0,0.00011236,2]
[329830156,1718723440154,-192.38,0.0001146,2]
[329830157,1718723440168,-156.96,0.00011471,2]
[329830158,1718723440181,-156.96,0.00011517,2]
[329830159,1718723440191,-156.96,0.00011563,2]
[329830160,1718723440201,-800.0,0.0001157,2]
[329830161,1718723440210,-156.96,0.00011609,2]
[329830162,1718723440220,-156.96,0.00011655,2]
[329830163,1718723440230,-156.96,0.00011701,2]
[329830164,1718723440240,-156.96,0.00011747,2]
[329830165,1718723440249,-156.96,0.00011793,2]
[329830166,1718723440263,-189.3,0.00011813,2]
[329830167,1718723440272,-156.96,0.00011839,2]
[329830168,1718723440282,-156.96,0.00011885,2]
[329830169,1718723440292,-156.96,0.00011931,2]
[329830170,1718723440302,-156.96,0.00011977,2]
[329830171,1718723440312,-1424.78918312,0.00012,2]
[329830172,1718723440322,-200.0,0.00012022,2]
[329830173,1718723440332,-156.96,0.00012023,2]
[329830174,1718723440342,-156.96,0.00012069,2]
[329830175,1718723440352,-154.68170655,0.00012174,2]
[329830176,1718723440362,-270.0,0.00012359,2]
[329830177,1718723440371,-798.96,0.00012822,2]
[329830178,1718723440381,-800.0,0.00012856,2]
[329830179,1718723440391,-865.42884168,0.000129,2]
[329830180,1718723440400,-865.42884161,0.000129,2]
[329830181,1718723440410,-827.32,0.00013286,2]
[329830182,1718723440420,-865.42884161,0.00013408,2]
[329830183,1718723440430,-200.0,0.00013524,2]
[329830184,1718723440439,-154.68170655,0.00013537,2]
[329830185,1718723440449,-151.1,0.00013549,2]
[329830186,1718723440458,-625.0,0.00013569,2]
[329830187,1718723440468,-625.0,0.00013569,2]
[329830188,1718723440477,-613.72,0.00013699,2]
[329830189,1718723440487,-180.62,0.00013807,2]
[329830190,1718723440496,-370.11444388,0.0001386,2]
[329830191,1718723440508,-278.19599941,0.0001389,2]
[329830192,1718723440518,-2353.46210869,0.00013899,2]
[329830193,1718723440528,-170.07113814,0.000139,2]
[329830194,1718723440538,-58297.5393,0.000139,2]
[329830195,1718723440547,-24296.42952346,0.000139,2]
[329830196,1718723440556,-1632.31676574,0.000139,2]
[329830197,1718723440566,-155.31675784,0.00013998,2]
[329830198,1718723440576,-507.31737144,0.00013998,2]
[329830199,1718723440585,-3068.86718638,0.00013998,2]
[329830200,1718723440595,-482.45243267,0.00013998,2]
[329830201,1718723440604,-317.17607731,0.00013998,2]
[329830202,1718723440614,-2373.1700286,0.00013998,2]
[329830203,1718723440623,-7031.40709522,0.00013999,2]
[329830204,1718723440633,-334108.80648162,0.00014,2]
[329830205,1718723440645,-1245.03939917,0.00014,2]
[329830225,1718723441419,-5341.56197791,0.00014,2]
[329830226,1718723441546,-17949.45679548,0.00014,2]
[329830227,1718723441558,-8005.19999979,0.00014,2]
[329830228,1718723441570,-1132.44709814,0.00014,2]
[329830229,1718723441582,-703.90320097,0.00014,2]
[329830230,1718723442450,-1193.11739348,0.00014,2]
[329830231,1718723442462,-978.5086476,0.00014,2]
[329830232,1718723442473,-195976.80199825,0.00014,2]
[329830233,1718723442484,-5663.299946,0.00014,2]
[329830234,1718723443011,-2000.0,0.00014,2]
[329830236,1718723443022,-21518.12458186,0.00014,2]
[329830298,1718723443636,-681.83583395,0.00014,2]
[329830306,1718723443648,-268.77602007,0.00014,2]
[329830310,1718723443660,-330.3755325,0.00014,2]
[329830314,1718723443673,-462818.98477117,0.00014,2]
[329830318,1718723443683,-5000.0,0.00014,2]
[329830322,1718723443692,-3000.0,0.00014,2]
[329830327,1718723443702,-800.0,0.00014142,2]
[329830331,1718723443712,-358.349757,0.00014247,2]
[329830334,1718723443722,-375.58,0.00014371,2]
[329830337,1718723443731,-1234.0,0.000144,2]
[329830340,1718723443741,-24296.42952336,0.00014445,2]
[329830343,1718723443751,-19837.37179389,0.00014472,2]
[329830346,1718723443764,-392.9714793,0.0001452,2]
[329830348,1718723443774,-785.0,0.0001456,2]
[329830350,1718723443783,-2373.0,0.00014693,2]
[329830352,1718723443793,-865.42884161,0.00014706,2]
[329830354,1718723443803,-200.0,0.0001488,2]
[329830356,1718723443812,-500.0,0.0001488,2]
[329830358,1718723443822,-200.0,0.0001488,2]
[329830360,1718723443831,-752.0,0.00014884,2]
[329830362,1718723443841,-154.68170655,0.000149,2]
[329830364,1718723443851,-219.9,0.00014904,2]
[329830366,1718723443860,-278.19599941,0.00014979,2]
[329830368,1718723443869,-27310.48611,0.00014989,2]
[329830370,1718723443878,-2318.2301212,0.00014989,2]
[329830372,1718723443894,-2256.2664773,0.00014989,2]
[329830374,1718723443903,-7368.0078733,0.00014989,2]
[329830376,1718723443913,-26497.5609733,0.00014989,2]
[329830378,1718723443923,-6191.2633214,0.00014989,2]
[329830380,1718723443936,-3179.79648663,0.0001499,2]
[329830382,1718723443945,-278.19599941,0.0001499,2]
[329830384,1718723443954,-24296.42952336,0.00014991,2]
[329830386,1718723443965,-1137.29430933,0.00014999,2]
[329830388,1718723443974,-150.0,0.00014999,2]
[329830390,1718723443983,-687749.8732487,0.00015,2]
[329830392,1718723443995,-4540.0,0.00015,2]
[329830395,1718723444009,-1536.88570318,0.00015,2]
[329830457,1718723444615,-1251.24308642,0.00015,2]
[329830488,1718723444834,-1310.42936115,0.00015,2]
[329830490,1718723444846,-369.12270208,0.00015,2]
[329830492,1718723444858,-377.95532741,0.00015,2]
[329830495,1718723444870,-27332.77933436,0.00015,2]
[329830497,1718723444882,-531.80188952,0.00015,2]
[329830499,1718723444897,-1129.62206954,0.00015,2]
[329830501,1718723444909,-333922.787874,0.00015,2]
[329830503,1718723444918,-36190.710394,0.00015,2]
[329830504,1718723444930,-10138.75151659,0.00015,2]
[329830505,1718723444941,-392.66360108,0.00015,2]
[329830506,1718723444951,-17572.37653834,0.00015,2]
[329830704,1718723446892,-155.0,0.00013999,2]
[329830707,1718723446902,-155.0,0.00013999,2]
[329830710,1718723446912,-176.48208367,0.00015,2]
[329830715,1718723446925,-500.10126801,0.00015,2]
[329830718,1718723446939,-647.58,0.00015,2]
[329830721,1718723446949,-1065.01364503,0.00015,2]
[329830724,1718723446960,-909.43819293,0.00015,2]
[329830941,1718723473899,151.0,0.00020469,120]
[329830943,1718723875228,151.0,0.00020469,120]
[329830944,1718723878582,422.77,0.00018,13]
[329830945,1718723887722,500.0,0.00018,13]
[329830946,1718723890075,4006.96,0.00023022,120]
[329830947,1718723896716,496.76,0.00018,13]
[329830950,1718724266567,151.0,0.00020469,120]
[329830951,1718724609118,1405.76,0.00014877,14]
[329830959,1718724633164,-1450.0,0.00011947,2]
[329830961,1718724633175,-1684.86444504,0.00011947,2]
[329830962,1718724633187,-255.33567496,0.00011947,2]
[329830963,1718724633197,-125.4941396,0.00011948,2]
[329830964,1718724633209,-874.5058604,0.00011948,2]
[329830965,1718724633218,-296.25996071,0.00011949,2]
[329830966,1718724633228,-943.46654364,0.0001195,2]
[329830967,1718724633237,-155.0,0.0001195,2]
[329830968,1718724633247,-219.10985916,0.0001195,2]
[329830969,1718724633256,-537.03178108,0.00011951,2]
[329830970,1718724633265,-260.01702233,0.00011951,2]
[329830971,1718724633277,-287.0,0.00011951,2]
[329830972,1718724633290,-264.17463857,0.00011952,2]
[329830973,1718724633299,-155.0,0.00011952,2]
[329830974,1718724633308,-519.57002477,0.00011952,2]
[329830975,1718724633317,-689.65636266,0.00011952,2]
[329830976,1718724633329,-158.57633162,0.00011953,2]
[329830977,1718724633344,-791.54954618,0.00012,2]
[329830978,1718724633354,-162.6345703,0.00012009,2]
[329830979,1718724633363,-698.2,0.00012114,2]
[329830980,1718724633374,-160.0,0.00013241,2]
[329830981,1718724633383,-354.61,0.00013496,2]
[329830982,1718724633392,-299.15,0.00013512,2]
[329830983,1718724633401,-180.62,0.000138,2]
[329830984,1718724633411,-250.0,0.000138,2]
[329830985,1718724633420,-167.12,0.00013829,2]
[329830986,1718724633429,-306.86,0.00013861,2]
[329830987,1718724633438,-2489.57083121,0.00014,2]
[329830988,1718724633447,-698.2,0.00014378,2]
[329830989,1718724633456,-840.0,0.00014381,2]
[329830990,1718724633465,-5689.14837371,0.00014395,2]
[329830991,1718724633474,-626.62448516,0.00014398,2]
[329830992,1718724633483,-5215.5683,0.000148,2]
[329830993,1718724633492,-3404.5372,0.000148,2]
[329830994,1718724633502,-602.2592,0.000148,2]
[329830995,1718724633738,-5655.6554,0.000148,2]
[329830996,1718724633763,-584.309,0.000148,2]
[329830997,1718724633772,-703.0,0.000148,2]
[329830998,1718724633782,-200.0,0.0001488,2]
[329830999,1718724633791,-1000.0,0.0001488,2]
[329831000,1718724633800,-500.0,0.0001488,2]
[329831001,1718724633809,-200.0,0.0001488,2]
[329831002,1718724633819,-160.0,0.00014896,2]
[329831003,1718724633828,-557.91061401,0.00014898,2]
[329831004,1718724633837,-37633.19981905,0.000149,2]
[329831005,1718724633851,-336.42917852,0.000149,2]
[329831006,1718724633862,-25838.0,0.000149,2]
[329831007,1718724633873,-781.29693468,0.000149,2]
[329831008,1718724633884,-531.77659901,0.000149,2]
[329831009,1718724633895,-2034.51281324,0.000149,2]
[329831010,1718724633907,-32844.7846555,0.000149,2]
[329831011,1718724633916,-29020.4252,0.000149,2]
[329831012,1718724633925,-170.2609461,0.000149,2]
[329831013,1718724633935,-1882.3709,0.000149,2]
[329831014,1718724633945,-186.64468326,0.000149,2]
[329831015,1718724633954,-176.98889233,0.000149,2]
[329831016,1718724633963,-7500.0,0.000149,2]
[329831017,1718724633973,-222.06784948,0.000149,2]
[329831018,1718724633983,-19712.0891496,0.000149,2]
[329831019,1718724633992,-3479.6475526,0.00014988,2]
[329831020,1718724634002,-7500.9541026,0.00014988,2]
[329831021,1718724634012,-33461.3034464,0.00014988,2]
[329831022,1718724634022,-2840.3376356,0.00014988,2]
[329831023,1718724634032,-32465.292809,0.00014988,2]
[329831024,1718724634041,-9027.4170239,0.00014988,2]
[329831025,1718724634051,-170.08205433,0.00014998,2]
[329831026,1718724634060,-258.37137548,0.00014998,2]
[329831027,1718724634070,-481.48312914,0.00014998,2]
[329831028,1718724634080,-155.64326602,0.00014998,2]
[329831029,1718724634092,-205.81009804,0.00014998,2]
[329831030,1718724634101,-190.90850866,0.00014998,2]
[329831031,1718724634110,-2685.57613705,0.00014998,2]
[329831032,1718724634119,-453.87015895,0.00014998,2]
[329831033,1718724634128,-681.30421136,0.00014998,2]
[329831034,1718724634137,-193.27101439,0.00014998,2]
[329831035,1718724634147,-2373.19637807,0.00014998,2]
[329831036,1718724634156,-176.62524942,0.00014998,2]
[329831037,1718724634165,-246.51690211,0.00014998,2]
[329831038,1718724634174,-1282.18805985,0.00014998,2]
[329831039,1718724634183,-155.0,0.00014998,2]
[329831040,1718724634193,-156.78906714,0.00014998,2]
[329831041,1718724634202,-145304.4824427,0.00014999,2]
[329831042,1718724634214,-451.63886766,0.00014999,2]
[329831043,1718724634225,-2396.27302,0.00014999,2]
[329831044,1718724634236,-530.0,0.00014999,2]
[329831048,1718724640973,-791.54954618,0.00012008,2]
[329831051,1718724640982,-502.69377382,0.00014899,2]
[329831054,1718724640995,-20.53276543,0.00014899,2]
[329831056,1718724641004,-281.46723457,0.00014999,2]
[329831058,1718724641016,-639.75,0.00014999,2]
[329831060,1718724641028,-20834.65949868,0.00014999,2]
[329831063,1718724641040,-38436.69603142,0.00014999,2]
[329831065,1718724641049,-756.0,0.00015,2]
[329831067,1718724641059,-143616.3039203,0.00015,2]
[329831069,1718724641069,-3962.58127052,0.00015,2]
[329831071,1718724641079,-622.06050142,0.00015,2]
[329831072,1718724641089,-489.0,0.00015,2]
[329831073,1718724641103,-1905.68534038,0.00015,2]
[329831074,1718724641113,-754487.78370892,0.00015,2]
[329831075,1718724641121,-116205.0,0.00015,2]
[329831076,1718724641131,-155.52023343,0.00015,2]
[329831077,1718724641139,-500.0,0.00015,2]
[329831078,1718724641149,-500.0,0.00015,2]
[329831079,1718724641158,-500.0,0.00015,2]
[329831080,1718724641168,-500.0,0.00015,2]
[329831081,1718724641177,-500.0,0.00015,2]
[329831082,1718724641187,-500.0,0.00015,2]
[329831083,1718724641196,-500.0,0.00015,2]
[329831084,1718724641206,-500.0,0.00015,2]
[329831085,1718724641216,-500.0,0.00015,2]
[329831086,1718724641225,-500.0,0.00015,2]
[329831087,1718724641234,-500.0,0.00015,2]
[329831088,1718724641243,-500.0,0.00015,2]
[329831089,1718724641252,-500.0,0.00015,2]
[329831090,1718724641262,-500.0,0.00015,2]
[329831091,1718724641271,-500.0,0.00015,2]
[329831092,1718724641282,-500.0,0.00015,2]
[329831093,1718724641291,-500.0,0.00015,2]
[329831094,1718724641303,-500.0,0.00015,2]
[329831095,1718724641313,-500.0,0.00015,2]
[329831096,1718724641323,-500.0,0.00015,2]
[329831097,1718724641332,-500.0,0.00015,2]
[329831098,1718724641347,-500.0,0.00015,2]
[329831099,1718724641357,-500.0,0.00015,2]
[329831100,1718724641367,-500.0,0.00015,2]
[329831101,1718724641378,-500.0,0.00015,2]
[329831102,1718724641388,-500.0,0.00015,2]
[329831103,1718724641397,-500.0,0.00015,2]
[329831104,1718724641407,-500.0,0.00015,2]
[329831105,1718724641417,-500.0,0.00015,2]
[329831106,1718724641426,-500.0,0.00015,2]
[329831107,1718724641435,-500.0,0.00015,2]
[329831108,1718724641446,-500.0,0.00015,2]
[329831109,1718724641455,-500.0,0.00015,2]
[329831110,1718724641465,-500.0,0.00015,2]
[329831111,1718724641475,-500.0,0.00015,2]
[329831112,1718724641485,-500.0,0.00015,2]
[329831113,1718724641493,-500.0,0.00015,2]
[329831114,1718724641502,-500.0,0.00015,2]
[329831115,1718724641512,-500.0,0.00015,2]
[329831116,1718724641521,-500.0,0.00015,2]
[329831117,1718724641531,-500.0,0.00015,2]
[329831118,1718724641540,-500.0,0.00015,2]
[329831119,1718724641549,-500.0,0.00015,2]
[329831120,1718724641559,-500.0,0.00015,2]
[329831121,1718724641568,-500.0,0.00015,2]
[329831122,1718724641578,-500.0,0.00015,2]
[329831123,1718724641588,-500.0,0.00015,2]
[329831124,1718724641600,-500.0,0.00015,2]
[329831125,1718724641609,-500.0,0.00015,2]
[329831126,1718724641619,-500.0,0.00015,2]
[329831127,1718724641629,-500.0,0.00015,2]
[329831128,1718724641639,-500.0,0.00015,2]
[329831129,1718724641649,-500.0,0.00015,2]
[329831130,1718724641659,-500.0,0.00015,2]
[329831131,1718724641668,-500.0,0.00015,2]
[329831132,1718724641679,-500.0,0.00015,2]
[329831133,1718724641688,-500.0,0.00015,2]
[329831134,1718724641697,-500.0,0.00015,2]
[329831135,1718724641707,-500.0,0.00015,2]
[329831136,1718724641716,-500.0,0.00015,2]
[329831137,1718724641725,-500.0,0.00015,2]
[329831138,1718724641734,-500.0,0.00015,2]
[329831139,1718724641744,-500.0,0.00015,2]
[329831140,1718724641755,-500.0,0.00015,2]
[329831141,1718724641764,-500.0,0.00015,2]
[329831142,1718724641774,-500.0,0.00015,2]
[329831143,1718724641784,-500.0,0.00015,2]
[329831144,1718724641793,-500.0,0.00015,2]
[329831145,1718724641803,-500.0,0.00015,2]
[329831146,1718724641812,-500.0,0.00015,2]
[329831147,1718724641821,-500.0,0.00015,2]
[329831149,1718724641830,-500.0,0.00015,2]
[329831151,1718724641840,-500.0,0.00015,2]
[329831153,1718724641854,-500.0,0.00015,2]
[329831155,1718724641863,-500.0,0.00015,2]
[329831157,1718724641872,-500.0,0.00015,2]
[329831159,1718724641881,-500.0,0.00015,2]
[329831161,1718724641890,-500.0,0.00015,2]
[329831163,1718724641900,-500.0,0.00015,2]
[329831165,1718724641910,-500.0,0.00015,2]
[329831167,1718724641920,-500.0,0.00015,2]
[329831169,1718724641929,-500.0,0.00015,2]
[329831171,1718724641938,-500.0,0.00015,2]
[329831173,1718724641948,-500.0,0.00015,2]
[329831175,1718724641959,-500.0,0.00015,2]
[329831177,1718724641968,-500.0,0.00015,2]
[329831179,1718724641978,-500.0,0.00015,2]
[329831181,1718724641988,-500.0,0.00015,2]
[329831183,1718724641997,-500.0,0.00015,2]
[329831185,1718724642007,-500.0,0.00015,2]
[329831187,1718724642017,-500.0,0.00015,2]
[329831189,1718724642026,-500.0,0.00015,2]
[329831191,1718724642036,-500.0,0.00015,2]
[329831193,1718724642045,-500.0,0.00015,2]
[329831195,1718724642055,-500.0,0.00015,2]
[329831197,1718724642064,-500.0,0.00015,2]
[329831199,1718724642074,-500.0,0.00015,2]
[329831201,1718724642084,-500.0,0.00015,2]
[329831204,1718724642095,-500.0,0.00015,2]
[329831206,1718724642108,-500.0,0.00015,2]
[329831208,1718724642117,-500.0,0.00015,2]
[329831209,1718724642127,-500.0,0.00015,2]
[329831211,1718724642136,-500.0,0.00015,2]
[329831213,1718724642146,-500.0,0.00015,2]
[329831215,1718724642156,-500.0,0.00015,2]
[329831217,1718724642166,-500.0,0.00015,2]
[329831219,1718724642177,-500.0,0.00015,2]
[329831221,1718724642186,-500.0,0.00015,2]
[329831223,1718724642197,-500.0,0.00015,2]
[329831225,1718724642209,-500.0,0.00015,2]
[329831227,1718724642222,-500.0,0.00015,2]
[329831229,1718724642231,-500.0,0.00015,2]
[329831231,1718724642240,-500.0,0.00015,2]
[329831233,1718724642250,-500.0,0.00015,2]
[329831236,1718724642260,-500.0,0.00015,2]
[329831238,1718724642269,-500.0,0.00015,2]
[329831239,1718724642282,-500.0,0.00015,2]
[329831241,1718724642292,-500.0,0.00015,2]
[329831243,1718724642302,-500.0,0.00015,2]
[329831245,1718724642317,-500.0,0.00015,2]
[329831247,1718724642330,-500.0,0.00015,2]
[329831249,1718724642340,-500.0,0.00015,2]
[329831251,1718724642354,-500.0,0.00015,2]
[329831253,1718724642366,-500.0,0.00015,2]
[329831255,1718724642376,-500.0,0.00015,2]
[329831257,1718724642386,-500.0,0.00015,2]
[329831259,1718724642396,-500.0,0.00015,2]
[329831261,1718724642406,-500.0,0.00015,2]
[329831263,1718724642415,-500.0,0.00015,2]
[329831265,1718724642425,-500.0,0.00015,2]
[329831267,1718724642435,-500.0,0.00015,2]
[329831269,1718724642444,-500.0,0.00015,2]
[329831271,1718724642454,-500.0,0.00015,2]
[329831273,1718724642464,-500.0,0.00015,2]
[329831275,1718724642474,-500.0,0.00015,2]
[329831277,1718724642483,-500.0,0.00015,2]
[329831279,1718724642492,-500.0,0.00015,2]
[329831281,1718724642501,-500.0,0.00015,2]
[329831283,1718724642512,-500.0,0.00015,2]
[329831285,1718724642521,-500.0,0.00015,2]
[329831287,1718724642530,-500.0,0.00015,2]
[329831289,1718724642540,-500.0,0.00015,2]
[329831291,1718724642548,-500.0,0.00015,2]
[329831292,1718724642558,-500.0,0.00015,2]
[329831294,1718724642567,-500.0,0.00015,2]
[329831296,1718724642576,-500.0,0.00015,2]
[329831298,1718724642585,-500.0,0.00015,2]
[329831300,1718724642597,-500.0,0.00015,2]
[329831302,1718724642606,-500.0,0.00015,2]
[329831304,1718724642615,-500.0,0.00015,2]
[329831306,1718724642625,-500.0,0.00015,2]
[329831308,1718724642634,-500.0,0.00015,2]
[329831310,1718724642643,-500.0,0.00015,2]
[329831312,1718724642652,-500.0,0.00015,2]
[329831314,1718724642661,-500.0,0.00015,2]
[329831316,1718724642671,-500.0,0.00015,2]
[329831318,1718724642680,-500.0,0.00015,2]
[329831320,1718724642689,-500.0,0.00015,2]
[329831322,1718724642698,-500.0,0.00015,2]
[329831324,1718724642707,-500.0,0.00015,2]
[329831326,1718724642716,-500.0,0.00015,2]
[329831328,1718724642725,-500.0,0.00015,2]
[329831330,1718724642734,-500.0,0.00015,2]
[329831331,1718724642743,-500.0,0.00015,2]
[329831357,1718724642977,-500.0,0.00015,2]
[329831359,1718724642987,-500.0,0.00015,2]
[329831361,1718724642997,-500.0,0.00015,2]
[329831364,1718724643006,-500.0,0.00015,2]
[329831365,1718724643016,-500.0,0.00015,2]
[329831367,1718724643025,-500.0,0.00015,2]
[329831370,1718724643036,-500.0,0.00015,2]
[329831372,1718724643046,-500.0,0.00015,2]
[329831373,1718724643055,-500.0,0.00015,2]
[329831375,1718724643065,-500.0,0.00015,2]
[329831378,1718724643075,-500.0,0.00015,2]
[329831379,1718724643084,-500.0,0.00015,2]
[329831381,1718724643093,-500.0,0.00015,2]
[329831384,1718724643106,-500.0,0.00015,2]
[329831385,1718724643116,-500.0,0.00015,2]
[329831388,1718724643125,-500.0,0.00015,2]
[329831390,1718724643134,-500.0,0.00015,2]
[329831391,1718724643143,-500.0,0.00015,2]
[329831394,1718724643153,-500.0,0.00015,2]
[329831396,1718724643162,-500.0,0.00015,2]
[329831398,1718724643172,-500.0,0.00015,2]
[329831400,1718724643182,-500.0,0.00015,2]
[329831402,1718724643191,-500.0,0.00015,2]
[329831404,1718724643200,-500.0,0.00015,2]
[329831405,1718724643209,-500.0,0.00015,2]
[329831407,1718724643218,-500.0,0.00015,2]
[329831409,1718724643227,-500.0,0.00015,2]
[329831411,1718724643236,-3000.0,0.00015,2]
[329831413,1718724643245,-500.0,0.00015,2]
[329831415,1718724643255,-500.0,0.00015,2]
[329831417,1718724643264,-500.0,0.00015,2]
[329831419,1718724643273,-500.0,0.00015,2]
[329831421,1718724643282,-500.0,0.00015,2]
[329831423,1718724643292,-500.0,0.00015,2]
[329831425,1718724643303,-500.0,0.00015,2]
[329831427,1718724643312,-500.0,0.00015,2]
[329831429,1718724643322,-500.0,0.00015,2]
[329831431,1718724643332,-500.0,0.00015,2]
[329831433,1718724643341,-500.0,0.00015,2]
[329831435,1718724643352,-500.0,0.00015,2]
[329831437,1718724643362,-500.0,0.00015,2]
[329831439,1718724643374,-500.0,0.00015,2]
[329831441,1718724643385,-500.0,0.00015,2]
[329831443,1718724643396,-500.0,0.00015,2]
[329831445,1718724643405,-500.0,0.00015,2]
[329831447,1718724643415,-500.0,0.00015,2]
[329831449,1718724643424,-500.0,0.00015,2]
[329831451,1718724643433,-500.0,0.00015,2]
[329831452,1718724643443,-500.0,0.00015,2]
[329831454,1718724643452,-500.0,0.00015,2]
[329831456,1718724643461,-500.0,0.00015,2]
[329831458,1718724643470,-500.0,0.00015,2]
[329831460,1718724643480,-500.0,0.00015,2]
[329831461,1718724643489,-500.0,0.00015,2]
[329831462,1718724643499,-500.0,0.00015,2]
[329831463,1718724643508,-500.0,0.00015,2]
[329831464,1718724643517,-500.0,0.00015,2]
[329831465,1718724643527,-500.0,0.00015,2]
[329831466,1718724643536,-500.0,0.00015,2]
[329831467,1718724643546,-500.0,0.00015,2]
[329831468,1718724643556,-500.0,0.00015,2]
[329831469,1718724643565,-500.0,0.00015,2]
[329831470,1718724643575,-500.0,0.00015,2]
[329831471,1718724643584,-500.0,0.00015,2]
[329831472,1718724643594,-500.0,0.00015,2]
[329831473,1718724643607,-500.0,0.00015,2]
[329831474,1718724643617,-500.0,0.00015,2]